fUSD/lending_fUSD_20240121
["ID","MTS","AMOUNT","RATE_DAILY","PERIOD"]
[312411440,1705863067743,-1521.04,0.00041095,31]
[312411441,1705863067752,-945.78,0.00041095,31]
[312411442,1705863067762,-544.69,0.00041095,31]
[312411443,1705863067771,-1325.95,0.00041095,31]
[312411444,1705863067780,-500.0,0.00041095,31]
[312411445,1705863067790,-722.86,0.00041095,31]
[312411446,1705863067800,-1638.27,0.00041095,31]
[312411447,1705863067809,-2479.49,0.00041095,31]
[312411448,1705863067818,-2862.9,0.00041095,31]
[312411449,1705863067828,-781.61,0.00041095,31]
[312411450,1705863067837,-1020.59,0.00041095,31]
[312411451,1705863067846,-500.0,0.00041095,31]
[312411452,1705863067856,-500.0,0.00041095,31]
[312411453,1705863067865,-13684.18,0.00041095,31]
[312411454,1705863067874,-500.0,0.00041095,31]
[312411455,1705863067883,-500.0,0.00041095,31]
[312411456,1705863067892,-688.84,0.00041095,31]
[312411457,1705863067902,-1661.63,0.00041095,31]
[312411458,1705863067911,-500.0,0.00041095,31]
[312411459,1705863067920,-2128.7,0.00041095,31]
[312411460,1705863067930,-162.1129072,0.00041095,31]
[312411461,1705863067940,-4867.58,0.00041095,31]
[312411462,1705863067950,-2953.84,0.00041095,31]
[312411463,1705863067959,-404.3988862,0.00041095,31]
[312411464,1705863067969,-500.0,0.00041095,31]
[312411465,1705863067978,-500.0,0.00041095,31]
[312411466,1705863067987,-500.0,0.00041095,31]
[312411467,1705863067997,-500.0,0.00041095,31]
[312411468,1705863068006,-500.0,0.00041095,31]
[312411469,1705863068015,-3193.31,0.00041095,31]
[312411470,1705863068024,-500.0,0.00041095,31]
[312411471,1705863068033,-687.4,0.00041095,31]
[312411472,1705863068043,-500.0,0.00041095,31]
[312411473,1705863068052,-1215.74,0.00041095,31]
[312411474,1705863068061,-3100.08,0.00041095,31]
[312411475,1705863068070,-500.0,0.00041095,31]
[312411476,1705863068079,-500.0,0.00041095,31]
[312411477,1705863068087,-500.0,0.00041095,31]
[312411478,1705863068097,-500.0,0.00041095,31]
[312411479,1705863068106,-500.0,0.00041095,31]
[312411480,1705863068115,-1445.08,0.00041095,31]
[312411481,1705863068125,-916.15,0.00041095,31]
[312411482,1705863068135,-4139.67,0.00041095,31]
[312411483,1705863068144,-598.34,0.00041095,31]
[312411484,1705863068153,-500.0,0.00041095,31]
[312411485,1705863068163,-500.0,0.00041095,31]
[312411486,1705863068172,-710.29,0.00041095,31]
[312411487,1705863068181,-500.0,0.00041095,31]
[312411488,1705863068191,-5676.64,0.00041095,31]
[312411489,1705863068200,-500.0,0.00041095,31]
[312411490,1705863068209,-500.0,0.00041095,31]
[312411491,1705863068219,-2001.23,0.00041095,31]
[312411492,1705863068230,-2149.06,0.00041095,31]
[312411493,1705863068239,-940.56,0.00041095,31]
[312411494,1705863068248,-500.0,0.00041095,31]
[312411495,1705863068258,-4833.56,0.00041095,31]
[312411496,1705863068267,-506.94,0.00041095,31]
[312411497,1705863068276,-970.56,0.00041095,31]
[312411498,1705863068285,-2423.36,0.00041095,31]
[312411499,1705863068294,-1219.52,0.00041095,31]
[312411500,1705863068304,-1862.24,0.00041095,31]
[312411501,1705863068313,-500.0,0.00041095,31]
[312411502,1705863068322,-500.0,0.00041095,31]
[312411503,1705863068331,-500.0,0.00041095,31]
[312411504,1705863068340,-1187.95,0.00041095,31]
[312411505,1705863068349,-500.0,0.00041095,31]
[312411506,1705863068358,-500.0,0.00041095,31]
[312411507,1705863068368,-500.0,0.00041095,31]
[312411508,1705863068377,-1829.93,0.00041095,31]
[312411509,1705863068387,-500.0,0.00041095,31]
[312411510,1705863068396,-578.39,0.00041095,31]
[312411511,1705863068406,-14384.99,0.00041095,31]
[312411512,1705863068416,-639.46,0.00041095,31]
[312411513,1705863068426,-1213.94,0.00041095,31]
[312411514,1705863068435,-522.05761834,0.00041095,31]
[312411515,1705863068445,-500.0,0.00041095,31]
[312411516,1705863068455,-709.99,0.00041095,31]
[312411517,1705863068464,-300.0,0.00041095,31]
[312411518,1705863068473,-529.82541396,0.00041095,31]
[312411519,1705863068483,-625.46,0.00041095,31]
[312411520,1705863068492,-3268.88,0.00041095,31]
[312411521,1705863068501,-648.75,0.00041095,31]
[312411522,1705863068511,-975.48,0.00041095,31]
[312411523,1705863068520,-755.56,0.00041095,31]
[312411524,1705863068529,-550.67630044,0.00041095,31]
[312411525,1705863068538,-500.0,0.00041095,31]
[312411526,1705863068547,-500.0,0.00041095,31]
[312411527,1705863068557,-1678.3,0.00041095,31]
[312411528,1705863068566,-2329.16,0.00041095,31]
[312411529,1705863068575,-500.0,0.00041095,31]
[312411530,1705863068585,-558.66,0.00041095,31]
[312411531,1705863068594,-500.0,0.00041095,31]
[312411532,1705863068603,-1639.58,0.00041095,31]
[312411533,1705863068613,-1401.81,0.00041095,31]
[312411534,1705863068622,-500.0,0.00041095,31]
[312411535,1705863068632,-894.48,0.00041095,31]
[312411536,1705863068642,-687.4,0.00041095,31]
[312411537,1705863068654,-1615.83,0.00041095,31]
[312411538,1705863068663,-1087.01,0.00041095,31]
[312411539,1705863068672,-1031.2,0.00041095,31]
[312411540,1705863068681,-500.0,0.00041095,31]
[312411541,1705863068691,-531.01,0.00041095,31]
[312411542,1705863068700,-500.0,0.00041095,31]
[312411543,1705863068710,-1748.22,0.00041095,31]
[312411544,1705863068719,-2511.72,0.00041095,31]
[312411545,1705863068729,-4456.07,0.00041095,31]
[312411546,1705863068738,-500.0,0.00041095,31]
[312411547,1705863068748,-500.0,0.00041095,31]
[312411548,1705863068758,-500.0,0.00041095,31]
[312411549,1705863068767,-500.0,0.00041095,31]
[312411550,1705863068776,-1000.0,0.00041095,14]
[312411551,1705863068786,-3850.98,0.00041095,31]
[312411552,1705863068795,-579.06,0.00041095,31]
[312411553,1705863068804,-544.01841074,0.00041095,30]
[312411554,1705863068940,-500.0,0.00041095,31]
[312411555,1705863068951,-194.23558565,0.00041095,31]
[312411556,1705863068961,-3629.07,0.00041095,31]
[312411557,1705863068972,-500.0,0.00041095,31]
[312411558,1705863068982,-3411.41,0.00041095,31]
[312411559,1705863068991,-500.0,0.00041095,31]
[312411560,1705863069001,-500.0,0.00041095,31]
[312411561,1705863069011,-726.07,0.00041095,31]
[312411562,1705863069021,-500.0,0.00041095,31]
[312411563,1705863069031,-5194.93,0.00041095,31]
[312411564,1705863069041,-500.0,0.00041095,31]
[312411565,1705863069051,-1150.49,0.00041095,31]
[312411566,1705863069061,-3377.74,0.00041095,31]
[312411567,1705863069071,-1943.47,0.00041095,31]
[312411568,1705863069080,-500.0,0.00041095,31]
[312411569,1705863069090,-1108.56,0.00041095,31]
[312411570,1705863069100,-500.0,0.00041095,31]
[312411571,1705863069110,-500.0,0.00041095,31]
[312411572,1705863069121,-500.0,0.00041095,31]
[312411573,1705863069131,-500.0,0.00041095,31]
[312411574,1705863069142,-620.5,0.00041095,31]
[312411575,1705863069152,-1379.23,0.00041095,31]
[312411576,1705863069162,-500.0,0.00041095,31]
[312411577,1705863069172,-501.23982313,0.00041095,31]
[312411578,1705863069182,-965.9,0.00041095,31]
[312411579,1705863069192,-825.6,0.00041095,31]
[312411580,1705863069202,-3791.82,0.00041095,31]
[312411581,1705863069213,-500.0,0.00041095,31]
[312411582,1705863069222,-1532.88,0.00041095,31]
[312411583,1705863069233,-1797.81,0.00041095,31]
[312411584,1705863069243,-5971.46,0.00041095,31]
[312411585,1705863069252,-503.88968668,0.00041095,31]
[312411586,1705863069262,-500.0,0.00041095,31]
[312411587,1705863069272,-500.0,0.00041095,31]
[312411588,1705863069282,-500.0,0.00041095,31]
[312411589,1705863069292,-500.0,0.00041095,7]
[312411590,1705863069302,-597.64,0.00041095,31]
[312411591,1705863069313,-500.0,0.00041095,31]
[312411592,1705863069323,-554.71,0.00041095,31]
[312411593,1705863069333,-500.0,0.00041095,31]
[312411594,1705863069343,-843.24,0.00041095,31]
[312411595,1705863069352,-500.0,0.00041095,31]
[312411596,1705863069362,-505.05,0.00041095,31]
[312411597,1705863069373,-502.19553742,0.00041095,31]
[312411598,1705863069383,-1011.31,0.00041095,31]
[312411599,1705863069393,-500.0,0.00041095,31]
[312411600,1705863069404,-500.0,0.00041095,31]
[312411601,1705863069414,-500.0,0.00041095,31]
[312411602,1705863069425,-1242.18,0.00041095,31]
[312411603,1705863069435,-500.0,0.00041095,60]
[312411604,1705863069445,-500.0,0.00041095,15]
[312411605,1705863069455,-500.0,0.00041095,31]
[312411606,1705863069465,-31979.27,0.00041095,31]
[312411607,1705863069475,-1802.54,0.00041095,31]
[312411608,1705863069484,-500.0,0.00041095,31]
[312411609,1705863069494,-500.0,0.00041095,31]
[312411610,1705863069503,-724.71,0.00041095,31]
[312411611,1705863069513,-1209.74,0.00041095,31]
[312411612,1705863069523,-500.0,0.00041095,31]
[312411613,1705863069533,-2046.63,0.00041095,31]
[312411614,1705863069543,-1903.42,0.00041095,31]
[312411615,1705863069552,-4903.09,0.00041095,31]
[312411616,1705863069562,-500.0,0.00041095,31]
[312411617,1705863069571,-500.0,0.00041095,31]
[312411618,1705863069581,-500.0,0.00041095,31]
[312411619,1705863069590,-500.0,0.00041095,31]
[312411620,1705863069599,-1146.65,0.00041095,31]
[312411621,1705863069608,-2442.87,0.00041095,31]
[312411622,1705863069619,-500.0,0.00041095,31]
[312411623,1705863069628,-500.0,0.00041095,31]
[312411624,1705863069639,-500.0,0.00041095,31]
[312411625,1705863069649,-2526.05,0.00041095,31]
[312411626,1705863069658,-2162.48,0.00041095,31]
[312411627,1705863069671,-1626.96,0.00041095,31]
[312411628,1705863069681,-1000.0,0.00041095,2]
[312411629,1705863069691,-1812.71,0.00041095,31]
[312411630,1705863069701,-500.0,0.00041095,5]
[312411631,1705863069711,-500.0,0.00041095,31]
[312411632,1705863069721,-500.0,0.00041095,31]
[312411633,1705863069731,-500.0,0.00041095,31]
[312411634,1705863069741,-509.47,0.00041095,31]
[312411635,1705863069752,-500.0,0.00041095,31]
[312411636,1705863069762,-807.78,0.00041095,31]
[312411637,1705863069772,-4768.84,0.00041095,31]
[312411638,1705863069782,-638.08,0.00041095,31]
[312411639,1705863069792,-499.72958259,0.00041095,31]
[312411640,1705863069802,-500.0,0.00041095,31]
[312411641,1705863069812,-500.0,0.00041095,31]
[312411642,1705863069821,-500.0,0.00041095,31]
[312411643,1705863069831,-23111.4,0.00041095,31]
[312411644,1705863069842,-500.0,0.00041095,31]
[312411645,1705863069852,-500.0,0.00041095,31]
[312411646,1705863069861,-2345.39,0.00041095,31]
[312411647,1705863069871,-641.88,0.00041095,31]
[312411648,1705863069880,-500.0,0.00041095,31]
[312411649,1705863069890,-1543.52,0.00041095,31]
[312411650,1705863069899,-500.0,0.00041095,31]
[312411651,1705863069908,-2539.24,0.00041095,31]
[312411652,1705863069918,-500.0,0.00041095,31]
[312411653,1705863069927,-4085.26,0.00041095,31]
[312411654,1705863069938,-500.0,0.00041095,31]
[312411655,1705863069948,-500.0,0.00041095,2]
[312411656,1705863069957,-500.0,0.00041095,31]
[312411657,1705863069967,-1053.53,0.00041095,31]
[312411658,1705863069977,-500.0,0.00041095,31]
[312411659,1705863069987,-500.0,0.00041095,31]
[312411660,1705863069998,-500.0,0.00041095,31]
[312411661,1705863070009,-1444.4,0.00041095,31]
[312411662,1705863070019,-500.0,0.00041095,31]
[312411663,1705863070032,-1203.58,0.00041095,31]
[312411664,1705863070043,-8334.75,0.00041095,31]
[312411665,1705863070053,-1170.03,0.00041095,31]
[312411666,1705863070073,-3868.82,0.00041095,31]
[312411667,1705863070082,-751.65,0.00041095,31]
[312411668,1705863070100,-1290.9,0.00041095,31]
[312411669,1705863070115,-2604.67,0.00041095,31]
[312411670,1705863070128,-500.0,0.00041095,31]
[312411671,1705863070144,-3891.13,0.00041095,31]
[312411672,1705863070155,-524.11665765,0.00041095,31]
[312411673,1705863070180,-503.12646592,0.00041095,31]
[312411674,1705863070192,-500.0,0.00041095,31]
[312411675,1705863070201,-879.17,0.00041095,31]
[312411676,1705863070211,-500.0,0.00041095,31]
[312411677,1705863070241,-702.2,0.00041095,31]
[312411678,1705863070252,-1512.38,0.00041095,31]
[312411679,1705863070265,-500.0,0.00041095,31]
[312411680,1705863070277,-500.0,0.00041095,31]
[312411681,1705863070287,-500.0,0.00041095,31]
[312411682,1705863070298,-500.0,0.00041095,31]
[312411683,1705863070308,-4210.98,0.00041095,31]
[312411684,1705863070320,-500.0,0.00041095,31]
[312411685,1705863070330,-1010.5,0.00041095,31]
[312411686,1705863070345,-500.0,0.00041095,31]
[312411687,1705863070362,-500.0,0.00041095,31]
[312411688,1705863070373,-5113.55,0.00041095,31]
[312411689,1705863070386,-500.0,0.00041095,31]
[312411690,1705863070397,-5553.41,0.00041095,31]
[312411691,1705863070408,-500.0,0.00041095,31]
[312411692,1705863070418,-2513.27,0.00041095,31]
[312411693,1705863070448,-2513.27,0.00041095,31]
[312411694,1705863070460,-2021.88,0.00041095,31]
[312411695,1705863070475,-240.72930562,0.00041095,31]
[312411696,1705863070486,-2513.27,0.00041095,31]
[312411697,1705863070496,-831.35,0.00041095,31]
[312411698,1705863070507,-500.0,0.00041095,31]
[312411699,1705863070517,-2513.27,0.00041095,31]
[312411700,1705863070527,-500.0,0.00041095,31]
[312411701,1705863070556,-2513.27,0.00041095,31]
[312411702,1705863070567,-2513.27,0.00041095,31]
[312411703,1705863070578,-2513.27,0.00041095,31]
[312411704,1705863070588,-2513.27,0.00041095,31]
[312411705,1705863070598,-1451.78,0.00041095,31]
[312411706,1705863070612,-500.0,0.00041095,31]
[312411707,1705863070624,-1645.64,0.00041095,31]
[312411708,1705863070635,-2047.15,0.00041095,31]
[312411709,1705863070656,-2513.27,0.00041095,31]
[312411710,1705863070674,-500.0,0.00041095,31]
[312411711,1705863070687,-2513.27,0.00041095,31]
[312411712,1705863070701,-500.0,0.00041095,31]
[312411713,1705863070711,-2513.27,0.00041095,31]
[312411714,1705863070722,-928.47,0.00041095,31]
[312411715,1705863070732,-2513.27,0.00041095,31]
[312411716,1705863070763,-2513.27,0.00041095,31]
[312411717,1705863070773,-2513.27,0.00041095,31]
[312411718,1705863070784,-2513.27,0.00041095,31]
[312411719,1705863070794,-1009.2,0.00041095,31]
[312411720,1705863070806,-2513.27,0.00041095,31]
[312411721,1705863070817,-2513.27,0.00041095,31]
[312411722,1705863070828,-1721.6,0.00041095,31]
[312411723,1705863070840,-500.0,0.00041095,31]
[312411724,1705863070850,-2513.27,0.00041095,31]
[312411725,1705863070860,-2513.27,0.00041095,31]
[312411726,1705863070870,-507.02,0.00041095,31]
[312411727,1705863070880,-2513.27,0.00041095,31]
[312411728,1705863070890,-500.0,0.00041095,31]
[312411729,1705863070900,-2513.27,0.00041095,31]
[312411730,1705863070910,-2513.27,0.00041095,31]
[312411731,1705863070919,-833.04,0.00041095,31]
[312411732,1705863070929,-2513.27,0.00041095,31]
[312411733,1705863070939,-2513.50181082,0.00041095,31]
[312411734,1705863070949,-604.90519849,0.00041095,7]
[312411735,1705863070958,-500.0,0.00041095,31]
[312411736,1705863070968,-500.0,0.00041095,31]
[312411737,1705863070977,-853.75,0.00041095,31]
[312411738,1705863070987,-3752.11,0.00041095,31]
[312411739,1705863070997,-1139.83,0.00041095,31]
[312411740,1705863071007,-2604.2,0.00041095,31]
[312411741,1705863071017,-500.0,0.00041095,31]
[312411742,1705863071027,-1000.0,0.00041095,30]
[312411743,1705863071037,-3344.19,0.00041095,31]
[312411744,1705863071048,-500.0,0.00041095,31]
[312411745,1705863071058,-656.95,0.00041095,31]
[312411746,1705863071068,-500.0,0.00041095,31]
[312411747,1705863071078,-1369.33,0.00041095,31]
[312411748,1705863071087,-500.0,0.00041095,31]
[312411749,1705863071096,-500.0,0.00041095,31]
[312411750,1705863071105,-500.0,0.00041095,31]
[312411751,1705863071115,-2125.69,0.00041095,31]
[312411752,1705863071125,-2177.35,0.00041095,31]
[312411753,1705863071134,-523.94,0.00041095,31]
[312411754,1705863071143,-500.0,0.00041095,31]
[312411755,1705863071153,-500.0,0.00041095,31]
[312411756,1705863071162,-1442.9,0.00041095,31]
[312411757,1705863071172,-500.0,0.00041095,31]
[312411758,1705863071181,-1712.99,0.00041095,31]
[312411759,1705863071191,-1404.4,0.00041095,31]
[312411760,1705863071205,-500.0,0.00041095,31]
[312411761,1705863071214,-500.0,0.00041095,31]
[312411762,1705863071225,-500.0,0.00041095,31]
[312411763,1705863071234,-500.0,0.00041095,31]
[312411764,1705863071244,-1360.45,0.00041095,31]
[312411765,1705863071254,-316.98107301,0.00041095,31]
[312411766,1705863071264,-504.9,0.00041095,31]
[312411767,1705863071274,-989.76,0.00041095,31]
[312411768,1705863071287,-500.0,0.00041095,31]
[312411769,1705863071296,-500.0,0.00041095,31]
[312411770,1705863071728,-500.0,0.00041095,31]
[312411771,1705863071739,-2806.49,0.00041095,31]
[312411772,1705863071749,-500.0,0.00041095,31]
[312411773,1705863071759,-10000.0,0.00041095,31]
[312411774,1705863071769,-1242.78,0.00041095,31]
[312411775,1705863071778,-10132.2,0.00041095,31]
[312411776,1705863071787,-500.0,0.00041095,31]
[312411777,1705863071797,-627.09,0.00041095,31]
[312411778,1705863071807,-507.31494063,0.00041095,31]
[312411779,1705863071817,-2496.9,0.00041095,31]
[312411780,1705863071826,-500.0,0.00041095,31]
[312411781,1705863071837,-500.0,0.00041095,31]
[312411782,1705863071846,-3890.38,0.00041095,31]
[312411783,1705863071857,-1097.31,0.00041095,31]
[312411784,1705863071867,-500.0,0.00041095,31]
[312411785,1705863071876,-4035.88,0.00041095,31]
[312411786,1705863071886,-1353.68,0.00041095,31]
[312411787,1705863071895,-10189.15,0.00041095,31]
[312411788,1705863071905,-500.0,0.00041095,31]
[312411789,1705863071915,-500.0,0.00041095,2]
[312411790,1705863071924,-775.43,0.00041095,31]
[312411791,1705863071933,-290.23104046,0.00041095,31]
[312411792,1705863071943,-4930.09,0.00041095,31]
[312411793,1705863071952,-500.0,0.00041095,2]
[312411794,1705863071962,-500.0,0.00041095,10]
[312411795,1705863071971,-500.0,0.00041095,31]
[312411796,1705863071981,-500.0,0.00041095,31]
[312411797,1705863071991,-500.0,0.00041095,31]
[312411798,1705863072001,-500.0,0.00041095,31]
[312411799,1705863072010,-500.0,0.00041095,31]
[312411800,1705863072020,-4049.62,0.00041095,31]
[312411801,1705863072030,-678.75,0.00041095,31]
[312411802,1705863072040,-1229.34,0.00041095,31]
[312411803,1705863072049,-500.0,0.00041095,31]
[312411804,1705863072063,-530.26207213,0.00041095,31]
[312411805,1705863072073,-501.19179483,0.00041095,31]
[312411806,1705863072083,-500.0,0.00041095,31]
[312411807,1705863072093,-3443.53,0.00041095,31]
[312411808,1705863072102,-500.0,0.00041095,31]
[312411809,1705863072112,-151.0,0.00041095,7]
[312411810,1705863072122,-151.0,0.00041095,7]
[312411811,1705863072131,-151.0,0.00041095,7]
[312411812,1705863072142,-151.0,0.00041095,7]
[312411813,1705863072153,-188.0,0.00041095,7]
[312411814,1705863072163,-151.0,0.00041095,7]
[312411815,1705863072173,-151.0,0.00041095,7]
[312411816,1705863072183,-413.188458,0.00041095,7]
[312411817,1705863072193,-413.188458,0.00041095,7]
[312411818,1705863072202,-413.188458,0.00041095,7]
[312411819,1705863072212,-413.188458,0.00041095,7]
[312411820,1705863072222,-151.0,0.00041095,7]
[312411821,1705863072232,-151.0,0.00041095,7]
[312411822,1705863072242,-340.295733,0.00041095,7]
[312411823,1705863072253,-340.295733,0.00041095,7]
[312411824,1705863072263,-340.295733,0.00041095,7]
[312411825,1705863072273,-340.295733,0.00041095,7]
[312411826,1705863072283,-151.0,0.00041095,7]
[312411827,1705863072292,-151.0,0.00041095,7]
[312411828,1705863072303,-151.0,0.00041095,7]
[312411829,1705863072312,-171.440153,0.00041095,7]
[312411830,1705863072322,-151.0,0.00041095,7]
[312411831,1705863072332,-151.0,0.00041095,7]
[312411832,1705863072341,-151.0,0.00041095,7]
[312411833,1705863072351,-151.0,0.00041095,7]
[312411834,1705863072361,-382.18031,0.00041095,7]
[312411835,1705863072372,-382.18031,0.00041095,7]
[312411836,1705863072381,-382.18031,0.00041095,7]
[312411837,1705863072390,-382.18031,0.00041095,7]
[312411838,1705863072400,-151.0,0.00041095,7]
[312411839,1705863072410,-151.0,0.00041095,7]
[312411840,1705863072420,-151.0,0.00041095,7]
[312411841,1705863072430,-151.0,0.00041095,7]
[312411842,1705863072439,-151.0,0.00041095,7]
[312411843,1705863072449,-151.0,0.00041095,7]
[312411844,1705863072459,-151.0,0.00041095,7]
[312411845,1705863072468,-151.0,0.00041095,7]
[312411846,1705863072478,-151.0,0.00041095,7]
[312411847,1705863072487,-151.0,0.00041095,7]
[312411848,1705863072497,-151.0,0.00041095,7]
[312411849,1705863072506,-522.583892,0.00041095,7]
[312411850,1705863072515,-522.583892,0.00041095,7]
[312411851,1705863072525,-522.583892,0.00041095,7]
[312411852,1705863072535,-522.583892,0.00041095,7]
[312411853,1705863072544,-151.0,0.00041095,7]
[312411854,1705863072554,-151.0,0.00041095,7]
[312411855,1705863072563,-249.194922,0.00041095,7]
[312411856,1705863072572,-249.194922,0.00041095,7]
[312411857,1705863072581,-249.194922,0.00041095,7]
[312411858,1705863072591,-249.194922,0.00041095,7]
[312411859,1705863072601,-175.665256,0.00041095,7]
[312411860,1705863072611,-175.665256,0.00041095,7]
[312411861,1705863072622,-175.665256,0.00041095,7]
[312411862,1705863072632,-175.665256,0.00041095,7]
[312411863,1705863072643,-151.0,0.00041095,7]
[312411864,1705863072653,-151.0,0.00041095,7]
[312411865,1705863072664,-860.597674,0.00041095,7]
[312411866,1705863072677,-860.597674,0.00041095,7]
[312411867,1705863072687,-860.597674,0.00041095,7]
[312411868,1705863072696,-860.597674,0.00041095,7]
[312411869,1705863072706,-153.84,0.00041096,2]
[312411870,1705863072719,-4000.0,0.00041096,30]
[312411871,1705863072730,-215.4,0.00041096,2]
[312411872,1705863072741,-3768.41,0.000411,7]
[312411873,1705863072751,-1060.2,0.000411,7]
[312411874,1705863072761,-1799.1,0.000411,7]
[312411875,1705863072771,-1883.0,0.000411,2]
[312411876,1705863072780,-413.66389336,0.000411,2]
[312411877,1705863072790,-1037.75953923,0.000411,2]
[312411878,1705863072800,-636.44282087,0.000411,2]
[312411879,1705863072810,-200.0,0.000411,2]
[312411880,1705863072820,-151.9715095,0.000411,14]
[312411881,1705863072830,-151.9715095,0.000411,14]
[312411882,1705863072840,-151.9715095,0.000411,14]
[312411883,1705863072850,-151.9715095,0.000411,14]
[312411884,1705863072860,-151.9715095,0.000411,14]
[312411885,1705863072870,-151.9715095,0.000411,14]
[312411886,1705863072880,-151.9715095,0.000411,14]
[312411887,1705863072890,-151.9715095,0.000411,14]
[312411888,1705863072899,-151.9715095,0.000411,14]
[312411889,1705863072909,-151.9715095,0.000411,14]
[312411890,1705863072919,-151.9715095,0.000411,14]
[312411891,1705863072929,-151.97,0.000411,14]
[312411892,1705863072939,-364.73162279,0.000411,14]
[312411893,1705863072948,-364.73162279,0.000411,14]
[312411894,1705863072958,-151.36142841,0.000411,14]
[312411895,1705863072968,-151.36142841,0.000411,14]
[312411896,1705863072978,-151.36142841,0.000411,14]
[312411897,1705863072988,-151.36142841,0.000411,14]
[312411898,1705863072998,-151.36142841,0.000411,14]
[312411899,1705863073007,-151.36,0.000411,14]
[312411900,1705863073017,-181.63371409,0.000411,14]
[312411901,1705863073027,-181.63371409,0.000411,14]
[312411902,1705863073036,-155.38527278,0.000411,14]
[312411903,1705863073046,-155.38527278,0.000411,14]
[312411904,1705863073055,-155.38527278,0.000411,14]
[312411905,1705863073065,-155.38527278,0.000411,14]
[312411906,1705863073075,-155.38527278,0.000411,14]
[312411907,1705863073084,-155.38527278,0.000411,14]
[312411908,1705863073094,-155.38527278,0.000411,14]
[312411909,1705863073104,-155.38,0.000411,14]
[312411910,1705863073114,-248.61643646,0.000411,14]
[312411911,1705863073124,-248.61643646,0.000411,14]
[312411912,1705863073133,-153.43451578,0.000411,14]
[312411913,1705863073143,-153.43451578,0.000411,14]
[312411914,1705863073153,-153.43451578,0.000411,14]
[312411915,1705863073163,-153.43451578,0.000411,14]
[312411916,1705863073173,-153.43451578,0.000411,14]
[312411917,1705863073183,-153.43451578,0.000411,14]
[312411918,1705863073193,-153.43451578,0.000411,14]
[312411919,1705863073202,-153.43451578,0.000411,14]
[312411920,1705863073212,-153.43,0.000411,14]
[312411921,1705863073222,-276.18212841,0.000411,14]
[312411922,1705863073233,-276.18212841,0.000411,14]
[312411923,1705863073243,-156.06880431,0.000411,14]
[312411924,1705863073253,-156.06880431,0.000411,14]
[312411925,1705863073263,-156.06880431,0.000411,14]
[312411926,1705863073272,-156.06880431,0.000411,14]
[312411927,1705863073282,-156.06880431,0.000411,14]
[312411928,1705863073292,-156.06880431,0.000411,14]
[312411929,1705863073302,-156.06,0.000411,14]
[312411930,1705863073311,-218.49632604,0.000411,14]
[312411931,1705863073321,-218.49632604,0.000411,14]
[312411932,1705863073330,-500.0,0.000411,2]
[312411933,1705863073340,-171.02207813,0.00041138,30]
[312411934,1705863073350,-368.25394692,0.00041173,30]
[312411935,1705863073360,-159.22804465,0.00041173,30]
[312411936,1705863073370,-3490.71336168,0.00041173,30]
[312411937,1705863073380,-2525.06204019,0.00041173,30]
[312411938,1705863073389,-175.74415097,0.00041178,11]
[312411939,1705863073399,-329.5348862,0.00041232,30]